[Event "Early-Titled-Tuesday-Blitz-October-03-2023"]
[Site "Chess.com"]
[Date "2023.10.03"]
[Round "6"]
[White "stratacticos"]
[Black "LuisFSiles"]
[Result "0-1"]
[WhiteElo "1756"]
[BlackElo "2269"]
[TimeControl "180+1"]
[EndTime "9:05:40 PDT"]
[Termination "LuisFSiles won by checkmate"]

1. e4 {[%clk 0:03:00.3]} 1... c5 {[%clk 0:02:58.9]} 2. Nf3 {[%clk 0:02:58.9]}
2... Nc6 {[%clk 0:02:58.1]} 3. Nc3 {[%clk 0:02:56]} 3... g6 {[%clk 0:02:57.6]}
4. d3 {[%clk 0:02:50.9]} 4... Bg7 {[%clk 0:02:57.2]} 5. Bd2 {[%clk 0:02:50.6]}
5... Nf6 {[%clk 0:02:53.4]} 6. h3 {[%clk 0:02:46.7]} 6... d6 {[%clk 0:02:52.4]}
7. Be2 {[%clk 0:02:45.6]} 7... O-O {[%clk 0:02:50.8]} 8. O-O {[%clk 0:02:45.1]}
8... Rb8 {[%clk 0:02:51]} 9. a4 {[%clk 0:02:41.3]} 9... a6 {[%clk 0:02:50.6]}
10. Qc1 {[%clk 0:02:37.3]} 10... b5 {[%clk 0:02:46.3]} 11. axb5 {[%clk
0:02:33.9]} 11... axb5 {[%clk 0:02:47.2]} 12. Bh6 {[%clk 0:02:32.9]} 12... b4
{[%clk 0:02:45.2]} 13. Bxg7 {[%clk 0:02:31.3]} 13... Kxg7 {[%clk 0:02:44.1]} 14.
Nd5 {[%clk 0:02:28.9]} 14... e6 {[%clk 0:02:36.3]} 15. Ne3 {[%clk 0:02:17.8]}
15... Bb7 {[%clk 0:02:20.7]} 16. Nh2 {[%clk 0:02:10.8]} 16... Nd4 {[%clk
0:02:18.6]} 17. Bd1 {[%clk 0:02:09.4]} 17... e5 {[%clk 0:02:08.2]} 18. Neg4
{[%clk 0:02:02.8]} 18... Ng8 {[%clk 0:02:02.6]} 19. c3 {[%clk 0:01:52.6]} 19...
bxc3 {[%clk 0:01:59.7]} 20. bxc3 {[%clk 0:01:52.4]} 20... Ne6 {[%clk 0:01:59]}
21. Bf3 {[%clk 0:01:38.6]} 21... Nf4 {[%clk 0:01:55.3]} 22. Qe3 {[%clk
0:01:28.3]} 22... h5 {[%clk 0:01:40.6]} 23. d4 {[%clk 0:01:19.5]} 23... cxd4
{[%clk 0:01:35.5]} 24. cxd4 {[%clk 0:01:19.1]} 24... hxg4 {[%clk 0:01:36.2]} 25.
Nxg4 {[%clk 0:01:14.6]} 25... Bc8 {[%clk 0:01:08.3]} 26. Nh2 {[%clk 0:01:01.4]}
26... Qg5 {[%clk 0:01:02.2]} 27. dxe5 {[%clk 0:00:54.6]} 27... dxe5 {[%clk
0:00:57.5]} 28. Bg4 {[%clk 0:00:48.8]} 28... Bxg4 {[%clk 0:00:41.7]} 29. Nxg4
{[%clk 0:00:48.5]} 29... Nf6 {[%clk 0:00:35.4]} 30. Nxf6 {[%clk 0:00:44.8]}
30... Qxg2# {[%clk 0:00:34]} 0-1

[Event "Early-Titled-Tuesday-Blitz-October-03-2023"]
[Site "Chess.com"]
[Date "2023.10.03"]
[Round "6"]
[White "Doomfist26"]
[Black "LionTheLeon_06"]
[Result "1-0"]
[WhiteElo "2595"]
[BlackElo "2782"]
[TimeControl "180+1"]
[EndTime "9:05:48 PDT"]
[Termination "Doomfist26 won by checkmate"]

1. e4 {[%clk 0:02:50]} 1... c6 {[%clk 0:03:00]} 2. Nc3 {[%clk 0:02:49]} 2... d5
{[%clk 0:03:00.9]} 3. Qf3 {[%clk 0:02:49.7]} 3... dxe4 {[%clk 0:02:56.5]} 4.
Nxe4 {[%clk 0:02:48.5]} 4... Nd7 {[%clk 0:02:56.2]} 5. d4 {[%clk 0:02:47.4]}
5... Ngf6 {[%clk 0:02:55.9]} 6. Bc4 {[%clk 0:02:47]} 6... e6 {[%clk 0:02:53.6]}
7. Ne2 {[%clk 0:02:46.5]} 7... Nxe4 {[%clk 0:02:52.5]} 8. Qxe4 {[%clk
0:02:46.8]} 8... Nf6 {[%clk 0:02:53.3]} 9. Qh4 {[%clk 0:02:47.3]} 9... Be7
{[%clk 0:02:47.9]} 10. Bd2 {[%clk 0:02:46.2]} 10... O-O {[%clk 0:02:47.3]} 11.
O-O-O {[%clk 0:02:45.6]} 11... c5 {[%clk 0:02:11.8]} 12. dxc5 {[%clk 0:02:21.9]}
12... Qc7 {[%clk 0:02:10.6]} 13. Bd3 {[%clk 0:02:16.5]} 13... Qxc5 {[%clk
0:02:07.6]} 14. g4 {[%clk 0:02:08]} 14... g6 {[%clk 0:01:33.5]} 15. g5 {[%clk
0:02:00]} 15... Nd5 {[%clk 0:01:29.2]} 16. Ng3 {[%clk 0:01:54]} 16... Nb4 {[%clk
0:01:01.4]} 17. Bxb4 {[%clk 0:01:53.5]} 17... Qxb4 {[%clk 0:01:01.8]} 18. Ne4
{[%clk 0:01:54.2]} 18... h5 {[%clk 0:00:43.8]} 19. a3 {[%clk 0:01:32.7]} 19...
Qb6 {[%clk 0:00:39.8]} 20. Rhg1 {[%clk 0:01:21]} 20... Bd7 {[%clk 0:00:35.9]}
21. Nf6+ {[%clk 0:01:15.4]} 21... Bxf6 {[%clk 0:00:11]} 22. gxf6 {[%clk
0:01:16.3]} 22... Qc5 {[%clk 0:00:05.5]} 23. Bxg6 {[%clk 0:01:09.1]} 23... fxg6
{[%clk 0:00:04]} 24. Rxg6+ {[%clk 0:01:07.3]} 24... Kh8 {[%clk 0:00:02.9]} 25.
Rh6+ {[%clk 0:01:02.4]} 25... Kg8 {[%clk 0:00:03.2]} 26. Qg3+ {[%clk 0:01:02.8]}
26... Kf7 {[%clk 0:00:02.3]} 27. Qg7+ {[%clk 0:01:03.5]} 27... Ke8 {[%clk
0:00:02.7]} 28. Qxd7# {[%clk 0:01:04.2]} 1-0

[Event "Early-Titled-Tuesday-Blitz-October-03-2023"]
[Site "Chess.com"]
[Date "2023.10.03"]
[Round "6"]
[White "MokshAD1603"]
[Black "fabianvivasz"]
[Result "0-1"]
[WhiteElo "2601"]
[BlackElo "2466"]
[TimeControl "180+1"]
[EndTime "9:05:55 PDT"]
[Termination "fabianvivasz won by checkmate"]

1. e4 {[%clk 0:02:57.5]} 1... c5 {[%clk 0:02:58.4]} 2. Nf3 {[%clk 0:02:57.1]}
2... d6 {[%clk 0:02:58.9]} 3. d4 {[%clk 0:02:55.3]} 3... cxd4 {[%clk 0:02:59.8]}
4. Nxd4 {[%clk 0:02:55.3]} 4... Nf6 {[%clk 0:03:00.5]} 5. Nc3 {[%clk 0:02:56]}
5... g6 {[%clk 0:03:01.2]} 6. Be3 {[%clk 0:02:55.2]} 6... Bg7 {[%clk 0:03:01.7]}
7. f3 {[%clk 0:02:56]} 7... O-O {[%clk 0:03:02.1]} 8. Qd2 {[%clk 0:02:56.7]}
8... Nc6 {[%clk 0:03:02.8]} 9. O-O-O {[%clk 0:02:55.9]} 9... d5 {[%clk
0:03:02.8]} 10. Qe1 {[%clk 0:02:56.4]} 10... e5 {[%clk 0:02:55.8]} 11. Nxc6
{[%clk 0:02:55.9]} 11... bxc6 {[%clk 0:02:55.9]} 12. exd5 {[%clk 0:02:51.6]}
12... Nxd5 {[%clk 0:02:56.8]} 13. Bc4 {[%clk 0:02:50.3]} 13... Be6 {[%clk
0:02:41.6]} 14. Ne4 {[%clk 0:02:50.1]} 14... Qc7 {[%clk 0:01:50.9]} 15. Bc5
{[%clk 0:02:45.3]} 15... Rfd8 {[%clk 0:01:45.9]} 16. Kb1 {[%clk 0:02:44.9]}
16... Nf4 {[%clk 0:01:29.3]} 17. Bxe6 {[%clk 0:02:19.7]} 17... Nxe6 {[%clk
0:01:30.2]} 18. Bd6 {[%clk 0:02:14]} 18... Qb6 {[%clk 0:01:23]} 19. Qc3 {[%clk
0:02:14.6]} 19... Nd4 {[%clk 0:01:06.1]} 20. Rhe1 {[%clk 0:02:13.7]} 20... h6
{[%clk 0:00:57.6]} 21. Bc5 {[%clk 0:01:58]} 21... Qa6 {[%clk 0:00:49.2]} 22.
Bxd4 {[%clk 0:01:52.1]} 22... exd4 {[%clk 0:00:50.1]} 23. Qd3 {[%clk 0:01:51.3]}
23... Qb6 {[%clk 0:00:45]} 24. Nd2 {[%clk 0:01:45.5]} 24... Rab8 {[%clk
0:00:38.5]} 25. Nc4 {[%clk 0:01:45.3]} 25... Qc5 {[%clk 0:00:38.4]} 26. Re2
{[%clk 0:01:37.7]} 26... Rb4 {[%clk 0:00:38.3]} 27. Nd2 {[%clk 0:01:38]} 27...
a5 {[%clk 0:00:23.5]} 28. Rde1 {[%clk 0:01:37]} 28... a4 {[%clk 0:00:17.3]} 29.
Re8+ {[%clk 0:01:36.8]} 29... Rxe8 {[%clk 0:00:17.8]} 30. Rxe8+ {[%clk
0:01:36.9]} 30... Kh7 {[%clk 0:00:18.7]} 31. a3 {[%clk 0:01:25.1]} 31... Rb7
{[%clk 0:00:16.6]} 32. Qc4 {[%clk 0:01:24]} 32... Qb6 {[%clk 0:00:10]} 33. b4
{[%clk 0:01:15.8]} 33... axb3 {[%clk 0:00:08.6]} 34. Nxb3 {[%clk 0:01:16.4]}
34... d3 {[%clk 0:00:09.1]} 35. Qxd3 {[%clk 0:01:14.2]} 35... Qg1+ {[%clk
0:00:09.2]} 36. Ka2 {[%clk 0:01:13.5]} 36... Qa1+ {[%clk 0:00:09.8]} 37. Nxa1
{[%clk 0:01:12.3]} 37... Rb2# {[%clk 0:00:10.7]} 0-1

[Event "Early-Titled-Tuesday-Blitz-October-03-2023"]
[Site "Chess.com"]
[Date "2023.10.03"]
[Round "6"]
[White "NelsonLinda"]
[Black "Abund"]
[Result "0-1"]
[WhiteElo "2587"]
[BlackElo "2778"]
[TimeControl "180+1"]
[EndTime "9:06:04 PDT"]
[Termination "Abund won by resignation"]

1. b3 {[%clk 0:03:00.9]} 1... e5 {[%clk 0:02:58.4]} 2. Bb2 {[%clk 0:02:59.4]}
2... d6 {[%clk 0:02:58]} 3. g3 {[%clk 0:02:47.7]} 3... g6 {[%clk 0:02:57]} 4.
Bg2 {[%clk 0:02:48.1]} 4... Bg7 {[%clk 0:02:57.4]} 5. d3 {[%clk 0:02:48.3]} 5...
f5 {[%clk 0:02:56.9]} 6. Nd2 {[%clk 0:02:43.4]} 6... Nf6 {[%clk 0:02:57.2]} 7.
e4 {[%clk 0:02:43.7]} 7... O-O {[%clk 0:02:57]} 8. Qe2 {[%clk 0:02:19.8]} 8...
Nc6 {[%clk 0:02:56.8]} 9. O-O-O {[%clk 0:02:14.2]} 9... a5 {[%clk 0:02:56.1]}
10. exf5 {[%clk 0:01:58.2]} 10... Bxf5 {[%clk 0:02:52.1]} 11. a4 {[%clk
0:01:54.7]} 11... Nb4 {[%clk 0:02:47.7]} 12. h3 {[%clk 0:01:52.6]} 12... c6
{[%clk 0:02:41.3]} 13. g4 {[%clk 0:01:50.6]} 13... Bd7 {[%clk 0:02:41.4]} 14.
Nc4 {[%clk 0:01:48.1]} 14... Qc7 {[%clk 0:02:37.2]} 15. Qe3 {[%clk 0:01:37]}
15... Nfd5 {[%clk 0:02:35.8]} 16. Qd2 {[%clk 0:01:32.9]} 16... Nf4 {[%clk
0:02:27.6]} 17. Bf3 {[%clk 0:01:32.8]} 17... b5 {[%clk 0:02:19]} 18. axb5 {[%clk
0:01:29]} 18... cxb5 {[%clk 0:02:19.6]} 19. Bxa8 {[%clk 0:01:13.8]} 19... Rxa8
{[%clk 0:02:03.1]} 20. Kb1 {[%clk 0:00:43.5]} 20... bxc4 {[%clk 0:01:59.9]} 21.
dxc4 {[%clk 0:00:44.4]} 21... Ra6 {[%clk 0:01:50.9]} 22. Ne2 {[%clk 0:00:33.6]}
22... Nxe2 {[%clk 0:01:34.7]} 23. Qxe2 {[%clk 0:00:34.5]} 23... a4 {[%clk
0:01:33.7]} 24. f4 {[%clk 0:00:25.9]} 24... axb3 {[%clk 0:01:29.8]} 25. cxb3
{[%clk 0:00:26.8]} 25... Qa5 {[%clk 0:01:28.5]} 26. Bc3 {[%clk 0:00:26.7]} 26...
Bc6 {[%clk 0:01:21.4]} 27. Rhe1 {[%clk 0:00:19.3]} 27... Bf3 {[%clk 0:01:06.4]}
28. Qd2 {[%clk 0:00:18.8]} 28... Bxd1 {[%clk 0:01:01.2]} 29. Rxd1 {[%clk
0:00:18.3]} 29... Qa2+ {[%clk 0:00:50.9]} 30. Qxa2 {[%clk 0:00:18]} 30... Nxa2
{[%clk 0:00:51.8]} 31. Be1 {[%clk 0:00:16.7]} 31... exf4 {[%clk 0:00:51.2]} 32.
Rd5 {[%clk 0:00:15.7]} 32... Nc3+ {[%clk 0:00:48]} 33. Kc2 {[%clk 0:00:16.1]}
33... Nxd5 {[%clk 0:00:48.2]} 0-1

[Event "Early-Titled-Tuesday-Blitz-October-03-2023"]
[Site "Chess.com"]
[Date "2023.10.03"]
[Round "6"]
[White "InitiatingASC"]
[Black "venturov"]
[Result "0-1"]
[WhiteElo "2337"]
[BlackElo "2491"]
[TimeControl "180+1"]
[EndTime "9:06:12 PDT"]
[Termination "venturov won on time"]

1. Nf3 {[%clk 0:03:00.3]} 1... Nf6 {[%clk 0:02:57.7]} 2. b3 {[%clk 0:03:00.4]}
2... e6 {[%clk 0:02:54]} 3. Bb2 {[%clk 0:03:00.4]} 3... b6 {[%clk 0:02:53.8]} 4.
e3 {[%clk 0:03:00.5]} 4... Bb7 {[%clk 0:02:54.4]} 5. c4 {[%clk 0:03:00.2]} 5...
c5 {[%clk 0:02:54.1]} 6. Be2 {[%clk 0:03:00.3]} 6... Be7 {[%clk 0:02:54.5]} 7.
O-O {[%clk 0:03:00.9]} 7... O-O {[%clk 0:02:55.1]} 8. d3 {[%clk 0:03:00.1]} 8...
d6 {[%clk 0:02:54.8]} 9. Nbd2 {[%clk 0:03:00.2]} 9... Nbd7 {[%clk 0:02:55]} 10.
Qc2 {[%clk 0:02:58.1]} 10... Qc7 {[%clk 0:02:55.5]} 11. Rac1 {[%clk 0:02:56.6]}
11... a6 {[%clk 0:02:56.1]} 12. a3 {[%clk 0:02:56.8]} 12... Rac8 {[%clk
0:02:56]} 13. Qc3 {[%clk 0:02:55.7]} 13... Rfd8 {[%clk 0:02:53.8]} 14. Rfe1
{[%clk 0:02:56.1]} 14... Bf8 {[%clk 0:02:53.6]} 15. Bd1 {[%clk 0:02:56.1]} 15...
Qb8 {[%clk 0:02:52.9]} 16. Bc2 {[%clk 0:02:56.8]} 16... Qa8 {[%clk 0:02:53.2]}
17. d4 {[%clk 0:02:56.8]} 17... Ne4 {[%clk 0:02:53]} 18. Nxe4 {[%clk 0:02:55.2]}
18... Bxe4 {[%clk 0:02:53.9]} 19. Bxe4 {[%clk 0:02:55.6]} 19... Qxe4 {[%clk
0:02:54.3]} 20. Rcd1 {[%clk 0:02:40.8]} 20... Be7 {[%clk 0:02:43.1]} 21. Qd3
{[%clk 0:02:21]} 21... Qb7 {[%clk 0:02:40.4]} 22. Rd2 {[%clk 0:02:11.9]} 22...
b5 {[%clk 0:02:27]} 23. Red1 {[%clk 0:01:51.4]} 23... Bf8 {[%clk 0:02:17.8]} 24.
h3 {[%clk 0:01:38.2]} 24... h6 {[%clk 0:02:08]} 25. d5 {[%clk 0:01:21.3]} 25...
e5 {[%clk 0:02:06]} 26. e4 {[%clk 0:01:18.6]} 26... Be7 {[%clk 0:02:04]} 27. Bc3
{[%clk 0:01:14.9]} 27... Rf8 {[%clk 0:02:02.2]} 28. g4 {[%clk 0:01:12.8]} 28...
Rb8 {[%clk 0:01:58.1]} 29. Rb2 {[%clk 0:01:10.6]} 29... Qc7 {[%clk 0:01:55.9]}
30. Rdb1 {[%clk 0:01:07.4]} 30... Nf6 {[%clk 0:01:55]} 31. Nd2 {[%clk
0:00:58.3]} 31... Nh7 {[%clk 0:01:53.4]} 32. Nf1 {[%clk 0:00:58.4]} 32... Ng5
{[%clk 0:01:51.2]} 33. Bd2 {[%clk 0:00:55.9]} 33... Nh7 {[%clk 0:01:48.8]} 34.
Ne3 {[%clk 0:00:53.3]} 34... Bg5 {[%clk 0:01:47.8]} 35. Nf5 {[%clk 0:00:50.2]}
35... g6 {[%clk 0:01:39.4]} 36. Bxg5 {[%clk 0:00:29.5]} 36... Nxg5 {[%clk
0:01:31.2]} 37. Nxh6+ {[%clk 0:00:23.3]} 37... Kg7 {[%clk 0:01:31.1]} 38. Qe3
{[%clk 0:00:23.9]} 38... f6 {[%clk 0:01:30.6]} 39. h4 {[%clk 0:00:19.6]} 39...
Nxe4 {[%clk 0:01:27.5]} 40. Qxe4 {[%clk 0:00:11]} 40... Kxh6 {[%clk 0:01:27.5]}
41. f4 {[%clk 0:00:06.8]} 41... Kg7 {[%clk 0:01:24.7]} 0-1

[Event "Early-Titled-Tuesday-Blitz-October-03-2023"]
[Site "Chess.com"]
[Date "2023.10.03"]
[Round "6"]
[White "lluiss"]
[Black "viktorgen2021"]
[Result "0-1"]
[WhiteElo "2215"]
[BlackElo "2430"]
[TimeControl "180+1"]
[EndTime "9:06:12 PDT"]
[Termination "viktorgen2021 won on time"]

1. e4 {[%clk 0:03:00.9]} 1... c6 {[%clk 0:02:56.9]} 2. d4 {[%clk 0:02:58.5]}
2... d5 {[%clk 0:02:57.8]} 3. exd5 {[%clk 0:02:58.2]} 3... cxd5 {[%clk 0:02:58]}
4. Bd3 {[%clk 0:02:58.7]} 4... Nc6 {[%clk 0:02:58.5]} 5. c3 {[%clk 0:02:57.9]}
5... Qc7 {[%clk 0:02:58.6]} 6. h3 {[%clk 0:02:57.9]} 6... e5 {[%clk 0:02:58.8]}
7. dxe5 {[%clk 0:02:57.2]} 7... Nxe5 {[%clk 0:02:59.7]} 8. Nf3 {[%clk
0:02:57.4]} 8... Nxd3+ {[%clk 0:02:59.4]} 9. Qxd3 {[%clk 0:02:58.3]} 9... Nf6
{[%clk 0:03:00]} 10. O-O {[%clk 0:02:58.2]} 10... Be7 {[%clk 0:03:00.2]} 11. Be3
{[%clk 0:02:51.1]} 11... O-O {[%clk 0:02:59.6]} 12. Nbd2 {[%clk 0:02:51.2]}
12... g6 {[%clk 0:02:55]} 13. Nd4 {[%clk 0:02:46.2]} 13... Re8 {[%clk 0:02:53]}
14. Rfe1 {[%clk 0:02:46.3]} 14... Bd7 {[%clk 0:02:51.8]} 15. Re2 {[%clk
0:02:43.4]} 15... a6 {[%clk 0:02:47.5]} 16. Rae1 {[%clk 0:02:43.2]} 16... Bd6
{[%clk 0:02:47.1]} 17. Bg5 {[%clk 0:02:41]} 17... Nh5 {[%clk 0:02:44.9]} 18. Qf3
{[%clk 0:02:30.7]} 18... f6 {[%clk 0:02:21]} 19. Rxe8+ {[%clk 0:02:21.1]} 19...
Bxe8 {[%clk 0:02:16.8]} 20. Bxf6 {[%clk 0:02:04.4]} 20... Bf7 {[%clk 0:02:15.6]}
21. Ne6 {[%clk 0:01:26.2]} 21... Qd7 {[%clk 0:02:11]} 22. Ng5 {[%clk 0:01:24.6]}
22... Rf8 {[%clk 0:02:05.7]} 23. Be5 {[%clk 0:00:59.9]} 23... Bc5 {[%clk
0:01:41.7]} 24. Bd4 {[%clk 0:00:50.5]} 24... Bd6 {[%clk 0:01:40.9]} 25. Be5
{[%clk 0:00:41.8]} 25... Bc5 {[%clk 0:01:38.9]} 26. Nb3 {[%clk 0:00:40.1]} 26...
Be7 {[%clk 0:01:32.5]} 27. Nxf7 {[%clk 0:00:38.1]} 27... Rxf7 {[%clk 0:01:31.9]}
28. Qe3 {[%clk 0:00:35.8]} 28... Bh4 {[%clk 0:01:17]} 29. Bg3 {[%clk 0:00:27.6]}
29... Be7 {[%clk 0:01:08.5]} 30. Nd4 {[%clk 0:00:20.3]} 30... Nf6 {[%clk
0:01:05.1]} 31. Ne6 {[%clk 0:00:16.1]} 31... Ne4 {[%clk 0:01:01.1]} 32. Nd4
{[%clk 0:00:05.5]} 32... Bg5 {[%clk 0:00:59.2]} 33. Qd3 {[%clk 0:00:04]} 33...
h5 {[%clk 0:00:54.5]} 34. Nf3 {[%clk 0:00:04]} 34... Bf6 {[%clk 0:00:52.9]} 0-1

[Event "Early-Titled-Tuesday-Blitz-October-03-2023"]
[Site "Chess.com"]
[Date "2023.10.03"]
[Round "6"]
[White "GianmarcoVaR"]
[Black "PeshkaCh"]
[Result "0-1"]
[WhiteElo "2649"]
[BlackElo "2796"]
[TimeControl "180+1"]
[EndTime "9:06:14 PDT"]
[Termination "PeshkaCh won by checkmate"]

1. e4 {[%clk 0:01:32]} 1... e5 {[%clk 0:02:58.7]} 2. Nf3 {[%clk 0:01:31.7]} 2...
Nc6 {[%clk 0:02:58.5]} 3. Bc4 {[%clk 0:01:31.9]} 3... Bc5 {[%clk 0:02:58.5]} 4.
O-O {[%clk 0:01:31.9]} 4... Nf6 {[%clk 0:02:57.2]} 5. d3 {[%clk 0:01:32.1]} 5...
d6 {[%clk 0:02:55.6]} 6. c3 {[%clk 0:01:31.3]} 6... a6 {[%clk 0:02:53]} 7. Bb3
{[%clk 0:01:30.7]} 7... h6 {[%clk 0:02:53]} 8. Re1 {[%clk 0:01:28.2]} 8... Ba7
{[%clk 0:02:53]} 9. Na3 {[%clk 0:01:18.6]} 9... Be6 {[%clk 0:02:47.7]} 10. Nc4
{[%clk 0:01:18.1]} 10... O-O {[%clk 0:02:42.4]} 11. h3 {[%clk 0:01:16.4]} 11...
Re8 {[%clk 0:02:42.7]} 12. Be3 {[%clk 0:01:13.9]} 12... Bxe3 {[%clk 0:02:35]}
13. Nxe3 {[%clk 0:01:14.4]} 13... d5 {[%clk 0:02:33.1]} 14. exd5 {[%clk
0:01:01]} 14... Nxd5 {[%clk 0:02:34]} 15. Nc4 {[%clk 0:00:49.6]} 15... Nf4
{[%clk 0:02:33.4]} 16. Ncxe5 {[%clk 0:00:47.1]} 16... Nxe5 {[%clk 0:02:17.6]}
17. Nxe5 {[%clk 0:00:47.7]} 17... Qg5 {[%clk 0:02:05.7]} 18. Qf3 {[%clk
0:00:35]} 18... Bxb3 {[%clk 0:02:02.4]} 19. h4 {[%clk 0:00:29.2]} 19... Qf5
{[%clk 0:01:31]} 20. axb3 {[%clk 0:00:16.1]} 20... Rxe5 {[%clk 0:01:30.3]} 21.
g3 {[%clk 0:00:15.1]} 21... Nxd3 {[%clk 0:01:15.8]} 22. Qxf5 {[%clk 0:00:07]}
22... Rxf5 {[%clk 0:01:16.7]} 23. Re3 {[%clk 0:00:04.6]} 23... Nxf2 {[%clk
0:00:52.2]} 24. Rf1 {[%clk 0:00:04.6]} 24... Ng4 {[%clk 0:00:52.9]} 25. Re7
{[%clk 0:00:03.1]} 25... Rxf1+ {[%clk 0:00:52.2]} 26. Kxf1 {[%clk 0:00:03.8]}
26... Rc8 {[%clk 0:00:52.9]} 27. Ke2 {[%clk 0:00:03.8]} 27... Kf8 {[%clk
0:00:52.8]} 28. Re4 {[%clk 0:00:04.4]} 28... Re8 {[%clk 0:00:52.5]} 29. Kf3
{[%clk 0:00:03.2]} 29... Rxe4 {[%clk 0:00:52.2]} 30. Kxe4 {[%clk 0:00:03.7]}
30... Ke7 {[%clk 0:00:52.9]} 31. Kf5 {[%clk 0:00:04.2]} 31... Ne3+ {[%clk
0:00:52.9]} 32. Kf4 {[%clk 0:00:04.1]} 32... Nd1 {[%clk 0:00:53.8]} 33. Kg4
{[%clk 0:00:03.1]} 33... Nxb2 {[%clk 0:00:54.2]} 34. Kh5 {[%clk 0:00:04]} 34...
Nd1 {[%clk 0:00:54.6]} 35. c4 {[%clk 0:00:04.5]} 35... Ne3 {[%clk 0:00:52.3]}
36. c5 {[%clk 0:00:05.4]} 36... Nf5 {[%clk 0:00:51.4]} 37. g4 {[%clk 0:00:06]}
37... Ng3# {[%clk 0:00:51.8]} 0-1

[Event "Early-Titled-Tuesday-Blitz-October-03-2023"]
[Site "Chess.com"]
[Date "2023.10.03"]
[Round "6"]
[White "VOneChess"]
[Black "Roedor"]
[Result "0-1"]
[WhiteElo "2215"]
[BlackElo "2392"]
[TimeControl "180+1"]
[EndTime "9:06:18 PDT"]
[Termination "Roedor won on time"]

1. e4 {[%clk 0:03:00.9]} 1... e5 {[%clk 0:02:58]} 2. Nf3 {[%clk 0:03:00.8]} 2...
Nc6 {[%clk 0:02:57.7]} 3. Bb5 {[%clk 0:03:00.9]} 3... Nf6 {[%clk 0:02:57.5]} 4.
O-O {[%clk 0:03:00.5]} 4... Nxe4 {[%clk 0:02:57.3]} 5. Re1 {[%clk 0:03:00.1]}
5... Nd6 {[%clk 0:02:57.3]} 6. Bxc6 {[%clk 0:02:59.1]} 6... dxc6 {[%clk
0:02:58.2]} 7. Nxe5 {[%clk 0:02:55.3]} 7... Be7 {[%clk 0:02:58.4]} 8. d4 {[%clk
0:02:55.2]} 8... O-O {[%clk 0:02:58.2]} 9. Nc3 {[%clk 0:02:55.3]} 9... Bf6
{[%clk 0:02:56.5]} 10. Bf4 {[%clk 0:02:55.1]} 10... Nf5 {[%clk 0:02:56.3]} 11.
Ne4 {[%clk 0:02:19.1]} 11... Be7 {[%clk 0:02:47.5]} 12. c3 {[%clk 0:02:17.1]}
12... Nd6 {[%clk 0:02:47.5]} 13. Qf3 {[%clk 0:02:14.4]} 13... Nxe4 {[%clk
0:02:47.1]} 14. Qxe4 {[%clk 0:02:13.9]} 14... Bg5 {[%clk 0:02:47.6]} 15. Bg3
{[%clk 0:02:11.2]} 15... Be6 {[%clk 0:02:44.2]} 16. f4 {[%clk 0:02:07.1]} 16...
Bh4 {[%clk 0:02:33.9]} 17. f5 {[%clk 0:01:47.6]} 17... Bxg3 {[%clk 0:02:32.4]}
18. fxe6 {[%clk 0:01:32.4]} 18... Bxe5 {[%clk 0:02:28]} 19. Qxe5 {[%clk
0:01:17.2]} 19... fxe6 {[%clk 0:02:27.4]} 20. Qxe6+ {[%clk 0:01:18.1]} 20... Kh8
{[%clk 0:02:27.9]} 21. Re3 {[%clk 0:01:03.1]} 21... Qh4 {[%clk 0:02:25.6]} 22.
g3 {[%clk 0:00:54.4]} 22... Qh5 {[%clk 0:02:16.2]} 23. Rae1 {[%clk 0:00:51.3]}
23... h6 {[%clk 0:02:13.8]} 24. Qe5 {[%clk 0:00:29.4]} 24... Rf5 {[%clk
0:02:10.7]} 25. Qxc7 {[%clk 0:00:23.8]} 25... Raf8 {[%clk 0:01:31.6]} 26. R3e2
{[%clk 0:00:20.3]} 26... Qh3 {[%clk 0:01:29.1]} 27. Rg2 {[%clk 0:00:20.6]} 27...
R5f7 {[%clk 0:01:18.1]} 28. Qe5 {[%clk 0:00:17.8]} 28... Qg4 {[%clk 0:01:13.7]}
29. Qe3 {[%clk 0:00:07.5]} 29... Rf3 {[%clk 0:01:11.9]} 30. Qe2 {[%clk
0:00:07.2]} 30... Qf5 {[%clk 0:01:10.5]} 31. h4 {[%clk 0:00:02.4]} 31... Qg4
{[%clk 0:01:06.4]} 32. Kh2 {[%clk 0:00:02.4]} 32... a5 {[%clk 0:01:02.9]} 33.
Qe4 {[%clk 0:00:02.6]} 33... Qc8 {[%clk 0:00:59.2]} 34. Ree2 {[%clk 0:00:01.8]}
34... Rf1 {[%clk 0:00:58.3]} 0-1